{"text_format":"1","workbook":"xlsx","n_sheets":1,"sheets":["Fractions"],"not_rendered":{"charts":0,"images":0,"macros":1,"external_links":0,"defined_names":1,"comments":0,"pivot_tables":0},"unopened":[],"bounds":{"document_bytes":16777216,"sheet_cells":100000,"rows_first":2000,"rows_last":500,"rows_between":2000,"halvings":0,"cell_chars":16384,"cell_head_chars":4096},"cells_cut":0,"cells_raw":0,"read":"whole","date_system":"1900"}

{"sheet":"Fractions","index":0,"n_rows":54,"n_cols":39,"rows_kept":54,"cut":false,"hidden":false,"merged":[[52,38,52,40],[48,17,49,17],[48,19,49,20],[51,3,52,6],[51,7,52,10],[51,11,52,13],[47,21,47,25],[47,37,48,37],[44,22,45,24],[49,37,50,37],[48,21,49,25],[31,26,32,30],[20,23,21,23],[27,26,28,30],[41,3,42,5],[41,6,42,9],[41,10,42,12],[37,16,40,26],[35,20,36,20],[35,22,36,23],[38,14,39,15],[38,11,39,12],[1,1,1,32],[4,6,4,7],[5,6,5,7],[4,8,5,9],[4,27,5,27],[5,25,5,26],[4,10,5,13],[4,28,5,31],[16,8,17,8],[16,25,17,25],[20,25,21,25],[10,8,11,9],[10,25,11,26],[10,10,10,13],[11,10,11,13],[16,9,17,13],[20,26,21,30],[16,26,17,30],[20,9,21,13],[10,28,10,31],[11,28,11,31],[10,27,11,27],[20,8,21,8],[4,25,4,26],[16,6,17,6],[16,23,17,23],[20,6,21,6],[10,6,11,7],[31,23,32,23],[31,25,32,25],[27,22,28,22],[27,20,28,20],[27,6,28,6],[27,23,28,23],[27,10,28,14],[31,22,32,22],[31,20,32,20],[27,25,28,25],[31,10,32,15],[31,4,32,4],[27,7,28,7],[27,9,28,9],[31,9,32,9],[31,7,32,7],[31,6,32,6],[27,4,28,4]]}
[]
[null,"Level 3 Maths - Fractions                                                                                                                                                                   Created by Mr.Lafferty@mathsrevision.com                                                                                                                                                                                        "]
[null,null,"Q1.  Change to a mixed number :–"]
[]
[null,null,null,"(a)",null,null,{"$f":"(2*ROUND(RAND()*(20-5)+5,0)+1)","v":37},null,"=",null,null,null,null,null,null,null,null,null,null,null,null,null,null,"(b)",null,{"$f":"(2*ROUND(RAND()*(20-5)+5,0)+1)","v":19},null,"=",null,null,null,null,null,null,null,null,null,{"$f":"G5/G6","v":6.166666666666667}]
[null,null,null,null,null,null,{"$f":"CHOOSE(ROUND(RAND()*(4-1)+1,0),2,4,6,8)","v":6},null,null,null,null,null,null,null,null,null,null,null,null,null,null,null,null,null,null,{"$f":"CHOOSE(ROUND(RAND()*(4-1)+1,0),2,4,6,8)","v":6},null,null,null,null,null,null,null,null,null,null,null,{"$f":"Z5/Z6","v":3.1666666666666665}]
[]
[]
[null,null,null,"Change to a top heavy fraction :–",null,null,null,null,null,null,null,null,null,null,null,null,null,null,null,null,null,null,null,null,null,null,null,null,null,null,null,null,null,null,null,null,null,{"$f":"(2*ROUND(RAND()*(20-5)+5,0)+1)","v":39}]
[null,null,null,null,null,null,null,null,null,null,null,null,null,null,null,null,null,null,null,null,null,null,null,null,null,null,null,null,null,null,null,null,null,null,null,null,null,{"$f":"CHOOSE(ROUND(RAND()*(4-1)+1,0),2,4,6,8)","v":4}]
[null,null,null,"(c) ",null,null,{"$f":"AL9/AL10","v":9.75},null,"=",null,null,null,null,null,null,null,null,null,null,null,null,null,null,"(d)",null,{"$f":"AL12/AL13","v":5.75},null,"="]
[null,null,null,null,null,null,null,null,null,null,null,null,null,null,null,null,null,null,null,null,null,null,null,null,null,null,null,null,null,null,null,null,null,null,null,null,null,{"$f":"(2*ROUND(RAND()*(20-5)+5,0)+1)","v":23}]
[null,null,null,null,null,null,null,null,null,null,null,null,null,null,null,null,null,null,null,null,null,null,null,null,null,null,null,null,null,null,null,null,null,null,null,null,null,{"$f":"CHOOSE(ROUND(RAND()*(4-1)+1,0),2,4,6,8)","v":4}]
[]
[null,null,"Q2.  Calculate the following :-"]
[null,null,null,null,null,null,null,null,null,null,null,null,null,null,null,null,null,null,null,null,null,null,null,null,null,null,null,null,null,null,null,null,null,null,null,null,null,{"$f":"F17/F18+H17/H18","v":1.4642857142857144}]
[null,null,null,"(a)",null,{"$f":"F18-ROUND(RAND()*(2-1)+1,0)","v":5},"+",{"$f":"H18-ROUND(RAND()*(2-1)+1,0)","v":3},"=",null,null,null,null,null,null,null,null,null,null,null,"(b)",null,{"$f":"W18-ROUND(RAND()*(2-1)+1,0)","v":4},"-",{"$f":"ROUND(RAND()*(3-1)+1,0)","v":2},"="]
[null,null,null,null,null,{"$f":"ROUND(RAND()*(8-2)+2,0)+1","v":7},null,{"$f":"ROUND(RAND()*(8-2)+2,0)+1","v":4},null,null,null,null,null,null,null,null,null,null,null,null,null,null,{"$f":"ROUND(RAND()*(5-2)+2,0)+1","v":5},null,{"$f":"ROUND(RAND()*(8-6)+6,0)+1","v":8},null,null,null,null,null,null,null,null,null,null,null,null,{"$f":"W17/W18-Y17/Y18","v":0.55000000000000004}]
[]
[]
[null,null,null,"(c)",null,{"$f":"F22-ROUND(RAND()*(2-1)+1,0)","v":3},"x",{"$f":"H22-ROUND(RAND()*(2-1)+1,0)","v":8},"=",null,null,null,null,null,null,null,null,null,null,null,"(d)",null,{"$f":"W22-ROUND(RAND()*(2-1)+1,0)","v":4},"÷",{"$f":"ROUND(RAND()*(3-1)+1,0)","v":2},"=",null,null,null,null,null,null,null,null,null,null,null,{"$f":"F21*H21/(F22*H22)","v":0.53333333333333333}]
[null,null,null,null,null,{"$f":"ROUND(RAND()*(8-2)+2,0)+1","v":5},null,{"$f":"ROUND(RAND()*(8-2)+2,0)+1","v":9},null,null,null,null,null,null,null,null,null,null,null,null,null,null,{"$f":"ROUND(RAND()*(5-2)+2,0)+1","v":5},null,{"$f":"ROUND(RAND()*(8-6)+6,0)+1","v":9},null,null,null,null,null,null,null,null,null,null,null,null,{"$f":"(W21*Y22)/(W22*Y21)","v":3.6}]
[]
[]
[null,null,"Q3.  Calculate the following :-"]
[]
[null,null,null,null,null,null,null,null,null,null,null,null,null,null,null,null,null,null,null,null,null,null,null,null,null,null,null,null,null,null,null,null,null,null,null,null,null,{"$f":"(F29*E28+F28)/F29+((I29*H28+I28)/I29)","v":7.6349206349206344}]
[null,null,"(a)",null,{"$f":"ROUND(RAND()*(4-1)+1,0)","v":4},{"$f":"F29-ROUND(RAND()*(2-1)+1,0)","v":6},"+",{"$f":"ROUND(RAND()*(4-1)+1,0)","v":2},{"$f":"I29-ROUND(RAND()*(2-1)+1,0)","v":7},"=",null,null,null,null,null,null,null,null,"(b)",null,{"$f":"ROUND(RAND()*(9-5)+5,0)","v":6},{"$f":"V29-ROUND(RAND()*(2-1)+1,0)","v":2},"-",{"$f":"U28-ROUND(RAND()*(4-1)+1,0)","v":3},{"$f":"ROUND(RAND()*(3-1)+1,0)","v":1},"="]
[null,null,null,null,null,{"$f":"ROUND(RAND()*(8-2)+2,0)+1","v":7},null,null,{"$f":"ROUND(RAND()*(8-2)+2,0)+1","v":9},null,null,null,null,null,null,null,null,null,null,null,null,{"$f":"ROUND(RAND()*(5-2)+2,0)+1","v":3},null,null,{"$f":"ROUND(RAND()*(8-6)+6,0)+1","v":8},null,null,null,null,null,null,null,null,null,null,null,null,{"$f":"(V29*U28+V28)/V29-(Y29*X28+Y28)/Y29","v":3.541666666666667}]
[]
[]
[null,null,"(c)",null,{"$f":"ROUND(RAND()*(4-1)+1,0)","v":3},{"$f":"F33-ROUND(RAND()*(2-1)+1,0)","v":3},"x",{"$f":"ROUND(RAND()*(4-1)+1,0)","v":3},{"$f":"I33-ROUND(RAND()*(2-1)+1,0)","v":5},"=",null,null,null,null,null,null,null,null,"(d)",null,{"$f":"ROUND(RAND()*(5-3)+3,0)","v":4},{"$f":"V33-ROUND(RAND()*(2-1)+1,0)","v":4},"÷",{"$f":"ROUND(RAND()*(3-1)+1,0)","v":2},{"$f":"ROUND(RAND()*(3-1)+1,0)","v":2},"=",null,null,null,null,null,null,null,null,null,null,null,{"$f":"((F33*E32+F32)/F33)*((I33*H32+I32)/I33)","v":13.928571428571429}]
[null,null,null,null,null,{"$f":"ROUND(RAND()*(8-2)+2,0)+1","v":4},null,null,{"$f":"ROUND(RAND()*(8-2)+2,0)+1","v":7},null,null,null,null,null,null,null,null,null,null,null,null,{"$f":"ROUND(RAND()*(5-2)+2,0)+1","v":6},null,null,{"$f":"ROUND(RAND()*(8-6)+6,0)+1","v":8},null,null,null,null,null,null,null,null,null,null,null,null,{"$f":"((V33*U32+V32)/V33)/((Y33*X32+Y32)/Y33)","v":2.0740740740740744}]
[]
[]
[null,null,"Q4.  Calculate the area of the rectangle.",null,null,null,null,null,null,null,null,null,null,null,null,null,null,null,null,null,{"$f":"ROUND(RAND()*(7-4)+4,0)","v":6},{"$f":"V37-ROUND(RAND()*(2-1)+1,0)","v":2},"cm"]
[null,null,null,null,null,null,null,null,null,null,null,null,null,null,null,null,null,null,null,null,null,{"$f":"ROUND(RAND()*(5-2)+2,0)+1","v":4}]
[null,null,null,null,null,null,null,null,null,null,null,null,null,null,null,null,"Area ?"]
[null,null,null,null,null,null,null,null,null,null,null,{"$f":"U36-ROUND(RAND()*(3-1)+1,0)","v":5},null,{"$f":"ROUND(RAND()*(3-1)+1,0)","v":1},"cm"]
[null,null,null,null,null,null,null,null,null,null,null,null,null,{"$f":"ROUND(RAND()*(8-6)+6,0)+1","v":9}]
[]
[null,null,null,"Area =",null,null,null,null,null,null,"cm2",null,null,null,null,null,null,null,null,null,null,null,null,null,null,null,null,null,null,null,null,null,null,null,null,null,null,{"$f":"((V37*U36+V36)/V37)*((N40*L39+N39)/N40)","v":33.222222222222221}]
[]
[]
[null,null,null,null,null,null,null,null,null,null,null,null,null,null,null,null,null,null,null,null,null,null,"xcm"]
[null,null,"Q5. Find the breadth  xcm of the rectangle."]
[]
[null,null,null,null,null,null,null,null,null,null,null,null,null,null,null,null,null,null,null,null,null,"Area",null,null,null,null,null,null,null,null,null,null,null,null,null,null,null,{"$f":"ROUND(RAND()*(3-2)+2,0)","v":3},{"$f":"AM49-ROUND(RAND()*(2-1)+1,0)","v":3}]
[null,null,null,null,null,null,null,null,null,null,null,null,null,null,null,null,null,{"$f":"AL48","v":3},{"$f":"AM48","v":3},"cm",null,{"$f":"AL53","v":7.2},null,null,null,null,null,null,null,null,null,null,null,null,null,null,null,null,{"$f":"ROUND(RAND()*(5-2)+2,0)+1","v":5}]
[null,null,null,null,null,null,null,null,null,null,null,null,null,null,null,null,null,null,{"$f":"AM49","v":5},null,null,null,null,null,null,null,null,null,null,null,null,null,null,null,null,null,null,{"$f":"AL48-ROUND(RAND()*(1-1)+1,0)","v":2},{"$f":"ROUND(RAND()*(3-1)+1,0)","v":2}]
[null,null,null,null,null,null,null,null,null,null,null,null,null,null,null,null,null,null,null,null,null,null,null,null,null,null,null,null,null,null,null,null,null,null,null,null,null,null,{"$f":"ROUND(RAND()*(8-6)+6,0)+1","v":8}]
[null,null,null,"Breadth =",null,null,null,null,null,null,null,"cm"]
[null,null,null,null,null,null,null,null,null,null,null,null,null,null,null,null,null,null,null,null,null,null,null,null,null,null,null,null,null,null,null,null,null,null,null,null,null,{"$f":"((AM49*AL48+AM48)/AM49)*((AM51*AL50+AM50)/9)","v":7.2},"cm2"]
[null,null,null,null,null,null,null,null,null,null,null,null,null,null,null,null,null,null,null,null,null,null,null,null,null,null,null,null,null,null,null,null,null,null,null,null,null,{"$f":"(AM51*AL50+AM50)/AM51","v":2.25}]